Workbook

Sheet Ostoslista
M1: =laskutoimitukset!M9 -> MAITOTUOTTEET YHTEENSÄ
B2: Ostoslista
C3: Valmis | D3: OSTETTAVA ASIA | E3: KAUPPA | F3: LUOKKA | G3: MÄÄRÄ | H3: YKSIKKÖ | I3: YKSIKKÖHINTA | J3: YHTEENSÄ | K3: KOMMENTTI | M3: =laskutoimitukset!L9 -> 37
C4: 1 | D4: Appelsiineja | E4: Kauppa | F4: Hedelmät ja vihannekset | G4: 2 | H4: kg | I4: 2.99 € | J4: =IFERROR(Luettelo[MÄÄRÄ]*Luettelo[YKSIKKÖHINTA],"") -> 5.98 € | M4: =laskutoimitukset!M8 -> HEDELMÄT JA VIHANNEKSET YHTEENSÄ
D5: Omenoita | E5: Puutarha | F5: Hedelmät ja vihannekset | G5: 3 | H5: kg | I5: 1.99 € | J5: =IFERROR(Luettelo[MÄÄRÄ]*Luettelo[YKSIKKÖHINTA],"") -> 5.97 € | K5: Kuponki | M5: =laskutoimitukset!L8 -> 45
D6: Banaaneja | E6: Kauppa | F6: Hedelmät ja vihannekset | G6: 1 | H6: nippu | I6: 3.99 € | J6: =IFERROR(Luettelo[MÄÄRÄ]*Luettelo[YKSIKKÖHINTA],"") -> 3.99 €
D7: Salaattia | E7: Tori | F7: Hedelmät ja vihannekset | G7: 2 | H7: pää | I7: 2.29 € | J7: =IFERROR(Luettelo[MÄÄRÄ]*Luettelo[YKSIKKÖHINTA],"") -> 4.58 € | M7: =laskutoimitukset!M7 -> LIHATUOTTEET YHTEENSÄ
D8: Tomaatteja | E8: Tori | F8: Hedelmät ja vihannekset | G8: 4 | H8: kg | I8: 3.49 € | J8: =IFERROR(Luettelo[MÄÄRÄ]*Luettelo[YKSIKKÖHINTA],"") -> 13.96 € | M8: =laskutoimitukset!L7 -> 80
D9: Kurpitsa | E9: Tori | F9: Hedelmät ja vihannekset | G9: 2 | H9: kpl | I9: 1.50 € | J9: =IFERROR(Luettelo[MÄÄRÄ]*Luettelo[YKSIKKÖHINTA],"") -> 3.00 €
D10: Selleri | E10: Kauppa | F10: Hedelmät ja vihannekset | G10: 2 | H10: nippu | I10: 1.99 € | J10: =IFERROR(Luettelo[MÄÄRÄ]*Luettelo[YKSIKKÖHINTA],"") -> 3.98 € | M10: =laskutoimitukset!M6 -> KALATUOTTEET YHTEENSÄ
D11: Kurkku | E11: Tori | F11: Hedelmät ja vihannekset | G11: 1 | H11: kg | I11: 2.29 € | J11: =IFERROR(Luettelo[MÄÄRÄ]*Luettelo[YKSIKKÖHINTA],"") -> 2.29 € | M11: =laskutoimitukset!L6 -> 109
D12: Herkkusieniä | E12: Kauppa | F12: Hedelmät ja vihannekset | G12: 0.5 | H12: kg | I12: 2.25 € | J12: =IFERROR(Luettelo[MÄÄRÄ]*Luettelo[YKSIKKÖHINTA],"") -> 1.13 € | K12: Isoja portobelloja
D13: Maitoa | E13: Kotiinkuljetus | F13: Maitotuotteet | G13: 2 | H13: l | I13: 3.99 € | J13: =IFERROR(Luettelo[MÄÄRÄ]*Luettelo[YKSIKKÖHINTA],"") -> 7.98 € | M13: =laskutoimitukset!M3 -> MUUT YHTEENSÄ
D14: Juustoa | E14: Kotiinkuljetus | F14: Maitotuotteet | G14: 1 | H14: kg | I14: 9.99 € | J14: =IFERROR(Luettelo[MÄÄRÄ]*Luettelo[YKSIKKÖHINTA],"") -> 9.99 € | K14: Erilaisia leipäjuustoja | M14: =laskutoimitukset!L3 -> 0
D15: Munia | E15: Kotiinkuljetus | F15: Maitotuotteet | G15: 2 | H15: tusina | I15: 3.50 € | J15: =IFERROR(Luettelo[MÄÄRÄ]*Luettelo[YKSIKKÖHINTA],"") -> 7.00 €
D16: Raejuustoa | E16: Kotiinkuljetus | F16: Maitotuotteet | G16: 1 | H16: 16 dl | I16: 3.89 € | J16: =IFERROR(Luettelo[MÄÄRÄ]*Luettelo[YKSIKKÖHINTA],"") -> 3.89 € | M16: =laskutoimitukset!M4 -> OSTOSLISTAN KOKONAISSUMMA
D17: Kermaviiliä | E17: Kotiinkuljetus | F17: Maitotuotteet | G17: 1 | H17: 8 dl | I17: 2.99 € | J17: =IFERROR(Luettelo[MÄÄRÄ]*Luettelo[YKSIKKÖHINTA],"") -> 2.99 € | M17: =OstoksetYhteensä -> 271
D18: Jogurttia | E18: Kauppa | F18: Maitotuotteet | G18: 1 | H18: 16 dl | I18: 4.99 € | J18: =IFERROR(Luettelo[MÄÄRÄ]*Luettelo[YKSIKKÖHINTA],"") -> 4.99 € | K18: Kreikkalaista, hunajalla
D19: Jauhelihaa | E19: Tori | F19: Lihatuotteet | G19: 10 | H19: kg | I19: 7.99 € | J19: =IFERROR(Luettelo[MÄÄRÄ]*Luettelo[YKSIKKÖHINTA],"") -> 79.90 € | K19: Pekoniin käärittyjä fileitä
D20: Lohta | E20: Kalatori | F20: Kalatuotteet | G20: 6 | H20: kg | I20: 8.99 € | J20: =IFERROR(Luettelo[MÄÄRÄ]*Luettelo[YKSIKKÖHINTA],"") -> 53.94 €
D21: Jokiravunpyrstöjä | E21: Kalatori | F21: Kalatuotteet | G21: 5 | H21: kg | I21: 10.99 € | J21: =IFERROR(Luettelo[MÄÄRÄ]*Luettelo[YKSIKKÖHINTA],"") -> 54.95 €

Sheet laskutoimitukset (hidden)
A1: *** Taulukon on pysyttävä piilotettuna ***
K3: =SUM(Luettelo[YHTEENSÄ])-SUM(K6:K9) -> 0.00 € | L3: =ROUND(K3,0) -> 0 € | M3: MUUT YHTEENSÄ
L4: =ROUNDUP(SUM(Luettelo[YHTEENSÄ]),0) -> 271 € | M4: OSTOSLISTAN KOKONAISSUMMA
E6: =IFERROR(INDEX(Luettelo[LUOKKA],MATCH(,COUNTIF($E$5:E5,Luettelo[LUOKKA]),)),"") -> Hedelmät ja vihannekset | F6: =SUMIFS(Luettelo[YHTEENSÄ],Luettelo[LUOKKA],E6) -> 44.875 | G6: =F6+ROW()/1000000 -> 44.875006 | H6: =LARGE($G$6:$G$21,1) -> 108.890009 | I6: =MATCH(H6,$G$6:$G$21,0) -> 4 | J6: =INDEX($E$6:$E$21,$I6) -> Kalatuotteet | K6: =INDEX($F$6:$F$21,$I6) -> 108.89 € | L6: =ROUND(K6,0) -> 109 € | M6: =UPPER(J6) & " YHTEENSÄ" -> KALATUOTTEET YHTEENSÄ
E7: =IFERROR(INDEX(Luettelo[LUOKKA],MATCH(,COUNTIF($E$5:E6,Luettelo[LUOKKA]),)),"") -> Maitotuotteet | F7: =SUMIFS(Luettelo[YHTEENSÄ],Luettelo[LUOKKA],E7) -> 36.84 | G7: =F7+ROW()/1000000 -> 36.840007 | H7: =LARGE($G$6:$G$21,2) -> 79.900008 | I7: =MATCH(H7,$G$6:$G$21,0) -> 3 | J7: =INDEX($E$6:$E$21,$I7) -> Lihatuotteet | K7: =INDEX($F$6:$F$21,$I7) -> 79.90 € | L7: =ROUND(K7,0) -> 80 € | M7: =UPPER(J7) & " YHTEENSÄ" -> LIHATUOTTEET YHTEENSÄ
E8: =IFERROR(INDEX(Luettelo[LUOKKA],MATCH(,COUNTIF($E$5:E7,Luettelo[LUOKKA]),)),"") -> Lihatuotteet | F8: =SUMIFS(Luettelo[YHTEENSÄ],Luettelo[LUOKKA],E8) -> 79.9 | G8: 79.900008 | H8: =LARGE($G$6:$G$21,3) -> 44.875006 | I8: =MATCH(H8,$G$6:$G$21,0) -> 1 | J8: =INDEX($E$6:$E$21,$I8) -> Hedelmät ja vihannekset | K8: =INDEX($F$6:$F$21,$I8) -> 44.88 € | L8: =ROUND(K8,0) -> 45 € | M8: =UPPER(J8) & " YHTEENSÄ" -> HEDELMÄT JA VIHANNEKSET YHTEENSÄ
E9: =IFERROR(INDEX(Luettelo[LUOKKA],MATCH(,COUNTIF($E$5:E8,Luettelo[LUOKKA]),)),"") -> Kalatuotteet | F9: =SUMIFS(Luettelo[YHTEENSÄ],Luettelo[LUOKKA],E9) -> 108.89 | G9: 108.890009 | H9: =LARGE($G$6:$G$21,4) -> 36.840007 | I9: =MATCH(H9,$G$6:$G$21,0) -> 2 | J9: =INDEX($E$6:$E$21,$I9) -> Maitotuotteet | K9: =INDEX($F$6:$F$21,$I9) -> 36.84 € | L9: =ROUND(K9,0) -> 37 € | M9: =UPPER(J9) & " YHTEENSÄ" -> MAITOTUOTTEET YHTEENSÄ
E10: =IFERROR(INDEX(Luettelo[LUOKKA],MATCH(,COUNTIF($E$5:E9,Luettelo[LUOKKA]),)),"") ->  | F10: =SUMIFS(Luettelo[YHTEENSÄ],Luettelo[LUOKKA],E10) -> 0 | G10: 1e-05
E11: =IFERROR(INDEX(Luettelo[LUOKKA],MATCH(,COUNTIF($E$5:E10,Luettelo[LUOKKA]),)),"") ->  | F11: =SUMIFS(Luettelo[YHTEENSÄ],Luettelo[LUOKKA],E11) -> 0 | G11: 1.1e-05
E12: =IFERROR(INDEX(Luettelo[LUOKKA],MATCH(,COUNTIF($E$5:E11,Luettelo[LUOKKA]),)),"") ->  | F12: =SUMIFS(Luettelo[YHTEENSÄ],Luettelo[LUOKKA],E12) -> 0 | G12: 1.2e-05
E13: =IFERROR(INDEX(Luettelo[LUOKKA],MATCH(,COUNTIF($E$5:E12,Luettelo[LUOKKA]),)),"") ->  | F13: =SUMIFS(Luettelo[YHTEENSÄ],Luettelo[LUOKKA],E13) -> 0 | G13: 1.3e-05
E14: =IFERROR(INDEX(Luettelo[LUOKKA],MATCH(,COUNTIF($E$5:E13,Luettelo[LUOKKA]),)),"") ->  | F14: =SUMIFS(Luettelo[YHTEENSÄ],Luettelo[LUOKKA],E14) -> 0 | G14: 1.4e-05
E15: =IFERROR(INDEX(Luettelo[LUOKKA],MATCH(,COUNTIF($E$5:E14,Luettelo[LUOKKA]),)),"") ->  | F15: =SUMIFS(Luettelo[YHTEENSÄ],Luettelo[LUOKKA],E15) -> 0 | G15: 1.5e-05
E16: =IFERROR(INDEX(Luettelo[LUOKKA],MATCH(,COUNTIF($E$5:E15,Luettelo[LUOKKA]),)),"") ->  | F16: =SUMIFS(Luettelo[YHTEENSÄ],Luettelo[LUOKKA],E16) -> 0 | G16: 1.6e-05
E17: =IFERROR(INDEX(Luettelo[LUOKKA],MATCH(,COUNTIF($E$5:E16,Luettelo[LUOKKA]),)),"") ->  | F17: =SUMIFS(Luettelo[YHTEENSÄ],Luettelo[LUOKKA],E17) -> 0 | G17: 1.7e-05
E18: =IFERROR(INDEX(Luettelo[LUOKKA],MATCH(,COUNTIF($E$5:E17,Luettelo[LUOKKA]),)),"") ->  | F18: =SUMIFS(Luettelo[YHTEENSÄ],Luettelo[LUOKKA],E18) -> 0 | G18: 1.8e-05
E19: =IFERROR(INDEX(Luettelo[LUOKKA],MATCH(,COUNTIF($E$5:E18,Luettelo[LUOKKA]),)),"") ->  | F19: =SUMIFS(Luettelo[YHTEENSÄ],Luettelo[LUOKKA],E19) -> 0 | G19: 1.9e-05
E20: =IFERROR(INDEX(Luettelo[LUOKKA],MATCH(,COUNTIF($E$5:E19,Luettelo[LUOKKA]),)),"") ->  | F20: =SUMIFS(Luettelo[YHTEENSÄ],Luettelo[LUOKKA],E20) -> 0 | G20: 2e-05
E21: =IFERROR(INDEX(Luettelo[LUOKKA],MATCH(,COUNTIF($E$5:E20,Luettelo[LUOKKA]),)),"") ->  | F21: =SUMIFS(Luettelo[YHTEENSÄ],Luettelo[LUOKKA],E21) -> 0 | G21: 2.1e-05
